bitfinex-derivatives/quotes_ETHF0:USTF0_20220106
["timestamp","ask_amount","ask_price","bid_price","bid_amount"]
[1641463037780,0.5,3320.9,3318.4,1.0]
[1641463037980,3.85542589,3321.2,3320.2,0.002]
[1641463038380,4.0,3323.3,3320.2,0.002]
[1641463038381,2.50479,3320.3,3320.2,0.002]
[1641463038580,2.50479,3320.3,3318.7,1.35577331]
[1641463038581,12.73478099,3320.3,3318.7,1.35577331]
[1641463038782,0.5,3318.8,3318.7,1.35577331]
[1641463038982,0.5,3319.1,3318.2,2.03365997]
[1641463039180,0.5,3318.4,3318.0,2.54117437]
[1641463039381,0.5,3319.5,3318.0,2.54117437]
[1641463039580,0.5,3319.1,3318.0,2.54117437]
[1641463039783,0.5,3319.5,3317.7,3.38943328]
[1641463039981,12.00478999,3320.3,3317.1,2.54117437]
[1641463039982,0.5,3319.0,3317.4,2.03337727]
[1641463040480,2.00479,3318.6,3317.6,1.0]
[1641463040679,2.00479,3318.6,3318.5,1.0]
[1641463040879,0.5,3319.8,3318.5,1.132394]
[1641463041080,1.50565902,3319.7,3318.7,1.0]
[1641463041282,1.50550941,3320.1,3318.7,1.0]
[1641463041482,1.59921542,3320.9,3318.7,1.5]
[1641463041884,9.99999999,3320.6,3318.7,1.5]
[1641463042083,9.99999999,3320.6,3317.6,1.5]
[1641463042288,2.00479,3319.9,3319.1,2.00479]
[1641463042484,2.00479,3320.2,3319.7,1.50502905]
[1641463042684,2.00479,3320.2,3319.1,2.00479]
[1641463042883,1.50601276,3319.5,3317.6,1.50601276]
[1641463043083,9.99999999,3320.0,3317.1,1.5]
[1641463043286,2.00479,3320.2,3317.6,1.5]
[1641463043485,2.00479,3320.2,3315.7,4.0]
[1641463043486,9.99999999,3319.5,3315.7,4.0]
[1641463043684,9.99999999,3319.1,3316.0,12.71]
[1641463044085,9.99999999,3318.8,3316.0,12.71]
[1641463044286,9.99999999,3316.9,3316.4,2.00479]
[1641463044487,2.00479,3317.5,3314.8,1.5]
[1641463044685,2.00479,3317.5,3314.1,0.451]
[1641463044887,2.00479,3317.5,3315.1,12.71]
[1641463045692,2.00479,3317.5,3315.3,1.5]
[1641463045889,2.00479,3317.5,3316.8,12.71]
[1641463046092,2.00479,3317.5,3316.9,0.132394]
[1641463046293,2.00479,3317.0,3315.6,2.00479]
[1641463046591,2.00479,3317.0,3313.4,5.5]
[1641463046791,2.00479,3317.0,3314.2,1.5]
[1641463046991,2.00479,3317.0,3315.5,1.5]
[1641463047393,2.00479,3317.0,3314.9,1.5]
[1641463047792,2.00479,3317.5,3314.9,1.5]
[1641463047995,2.00479,3317.5,3314.4,1.5]
[1641463048193,2.00479,3317.5,3315.5,12.71]
[1641463048394,4.825163,3317.4,3315.8,2.00479]
[1641463048794,2.00479,3317.5,3315.8,2.00479]
[1641463049094,0.78231888,3317.5,3315.8,2.00479]
[1641463049295,0.78231888,3317.5,3315.9,12.71]
[1641463049497,31.357,3319.2,3315.8,2.00479]
[1641463050096,1.50682062,3317.7,3315.8,3.51161062]
[1641463050297,2.00479,3317.9,3317.2,2.00479]
[1641463050700,2.00479,3317.9,3316.7,4.00958]
[1641463050898,1.22098567,3317.8,3316.7,4.00958]
[1641463051498,1.22098567,3317.8,3317.0,12.71]
[1641463051698,9.99999999,3320.2,3317.1,0.132394]
[1641463052097,9.99999999,3320.2,3317.2,12.71]
[1641463052299,2.00479,3318.7,3318.0,2.00479]
[1641463052600,2.00479,3318.7,3316.7,4.00958]
[1641463052998,9.99999999,3318.5,3316.7,4.00958]
[1641463053200,1.50682062,3317.7,3316.7,4.00958]
[1641463053398,4.822763,3318.4,3316.7,4.00958]
[1641463053699,2.00479,3318.7,3316.7,4.00958]
[1641463053700,4.823344,3317.6,3316.7,4.00958]
[1641463053900,0.81878755,3317.5,3316.7,4.00958]
[1641463054100,0.81878755,3317.5,3316.8,0.132394]
[1641463054300,0.81878755,3317.5,3317.0,2.00479]
[1641463054500,0.6236,3319.1,3317.1,0.132394]
[1641463055699,1.50630993,3318.8,3317.4,12.71]
[1641463055900,1.50630993,3318.8,3318.0,1.5]
[1641463056100,34.169,3320.8,3318.1,0.132394]
[1641463056101,0.84298292,3318.9,3318.1,0.132394]
[1641463056300,0.84298292,3318.9,3318.1,2.00479]
[1641463056500,0.84298292,3318.9,3318.2,0.132394]
[1641463057100,34.169,3320.8,3318.2,0.132394]
[1641463057300,16.015,3322.4,3318.4,12.71]
[1641463057500,33.5127,3322.3,3319.6,1.5]
[1641463057701,33.5127,3322.3,3319.7,12.71]
[1641463057901,9.99999999,3321.3,3318.5,1.5]
[1641463058200,1.50589709,3319.7,3318.3,1.50568622]
[1641463058404,1.50589709,3319.7,3318.1,3.50479]
[1641463058405,2.00479,3319.7,3318.9,2.00479]
[1641463058601,2.00479,3319.7,3318.1,3.50479]
[1641463058801,1.50595379,3319.6,3318.1,3.50479]
[1641463059001,1.33749532,3319.5,3318.2,1.5]
[1641463059601,1.33749532,3319.5,3317.7,1.50595379]
[1641463059801,1.33749532,3319.5,3315.7,1.477]
[1641463060001,1.50638254,3318.6,3317.3,1.50613297]
[1641463060204,17.53131,3319.4,3316.5,1.5]
[1641463060401,2.25402604,3329.9,3317.2,2.00479]
[1641463060402,2.00479,3317.9,3317.2,2.00479]
[1641463060602,1.50677067,3317.8,3316.8,2.00479]
[1641463060802,0.518441,3317.8,3316.8,2.00479]
[1641463061406,1.5070091,3317.3,3316.8,2.00479]
[1641463061804,4.823126,3317.8,3316.8,2.00479]
[1641463062103,0.90934755,3317.9,3317.3,1.5]
[1641463062303,0.518521,3318.3,3317.7,2.00479]
[1641463062905,10.40999999,3320.6,3317.8,0.132394]
[1641463063104,9.99999999,3320.1,3317.8,0.132394]
[1641463063304,12.71,3320.5,3317.8,0.132394]
[1641463063505,12.71,3319.9,3317.8,0.132394]
[1641463063804,1.50637574,3318.7,3317.8,0.132394]
[1641463064004,1.29852489,3318.6,3317.8,0.132394]
[1641463064605,1.50637574,3318.7,3317.8,0.132394]
[1641463064804,2.00479,3319.1,3317.8,0.132394]
[1641463065207,2.00479,3319.1,3317.9,1.5]
[1641463065406,0.98428373,3319.3,3317.7,2.00479]
[1641463065605,0.98428373,3319.3,3318.8,2.04392323]
[1641463065806,0.98428373,3319.3,3316.5,1.5]
[1641463066005,0.6236,3319.0,3316.2,1.5]
[1641463066205,0.98428373,3319.3,3315.9,1.5]
[1641463066206,1.50680246,3317.7,3315.9,1.5]
[1641463066406,1.50680246,3317.7,3317.1,2.00479]
[1641463066805,1.50680246,3317.7,3316.0,12.71]
[1641463066806,1.50704317,3317.2,3316.0,12.71]
[1641463067105,1.50689782,3317.5,3316.0,12.71]
[1641463068107,1.50689782,3317.5,3316.6,1.5]
[1641463068311,1.50689782,3317.5,3316.0,12.71]
[1641463068312,1.50689782,3317.5,3317.3,2.59522099]
[1641463068508,2.00479,3317.9,3317.3,2.59522099]
[1641463068509,0.229991,3317.4,3317.3,2.72761499]
[1641463068710,2.00479,3317.9,3317.3,2.59522099]
[1641463068910,2.00479,3317.9,3316.4,2.00479]
[1641463069208,1.22783564,3317.8,3316.4,2.00479]
[1641463069612,1.22783564,3317.8,3316.5,12.71]
[1641463069909,1.22783564,3317.8,3316.4,2.00479]
[1641463070412,2.00479,3317.2,3316.5,1.5]
[1641463070610,2.00479,3317.2,3317.1,14.21]
[1641463070809,2.234781,3317.2,3317.1,1.5]
[1641463071009,5.0,3316.8,3316.4,3.50479]
[1641463071209,2.00479,3317.2,3314.1,1.5]
[1641463071410,2.00479,3317.2,3313.9,1.477]
[1641463071411,1.50732712,3316.6,3314.7,1.50732712]
[1641463071610,1.87090694,3317.2,3314.3,1.5]
[1641463071909,1.87090694,3317.2,3314.4,12.71]
[1641463071910,4.825599,3316.5,3314.4,12.71]
[1641463072111,3.572787,3316.8,3314.1,1.5]
[1641463072311,17.53589,3316.4,3314.1,1.5]
[1641463072511,2.00479,3314.7,3314.1,1.5]
[1641463072710,2.00479,3314.7,3314.0,1.5]
[1641463072913,4.827419,3314.6,3313.9,2.00479]
[1641463073311,4.827419,3314.6,3313.8,1.50797038]
[1641463073511,4.827419,3314.6,3313.0,1.5083343]
[1641463073710,4.827419,3314.6,3312.7,1.5083343]
[1641463073711,17.537419,3314.6,3312.0,1.50875531]
[1641463073910,1.50875531,3313.9,3312.0,1.50875531]
[1641463074110,17.537419,3314.6,3311.5,12.71]
[1641463074312,4.829532,3313.8,3311.2,1.5]
[1641463074611,4.829532,3313.8,3309.9,1.5]
[1641463074612,2.00479,3312.5,3311.7,2.00479]
[1641463074811,2.00479,3312.5,3311.8,0.132394]
[1641463075012,2.00479,3312.5,3312.4,1.5]
[1641463075213,1.50817734,3315.2,3312.5,12.842394]
[1641463075415,1.50817734,3315.2,3313.1,1.5]
[1641463075612,1.50817734,3315.2,3312.4,1.50817734]
[1641463075813,1.50817734,3315.2,3312.5,1.5]
[1641463076013,4.827783,3315.1,3312.5,1.5]
[1641463076211,1.02763049,3315.0,3312.5,1.5]
[1641463076411,2.00479,3314.0,3313.0,2.00479]
[1641463076811,64.3505,3316.2,3313.9,1.5]
[1641463077011,2.941,3318.3,3314.3,1.5]
[1641463077213,33.0182,3317.3,3314.3,1.5]
[1641463077411,9.99999999,3317.9,3314.3,1.5]
[1641463077615,3.013857,3317.3,3314.3,1.5]
[1641463077814,9.99999999,3317.5,3313.2,12.71]
[1641463078017,3.012854,3317.8,3314.0,1.5]
[1641463078213,4.825381,3317.2,3315.2,1.5]
[1641463078415,6.06739087,3317.4,3313.8,1.5]
[1641463078416,2.00479,3315.5,3314.7,2.00479]
[1641463078614,2.00479,3315.5,3315.4,1.5]
[1641463078816,2.234781,3315.5,3314.0,1.5078726]
[1641463079016,2.234781,3315.5,3310.9,1.93439325]
[1641463079213,2.234781,3315.5,3312.7,1.5]
[1641463079416,4.82691,3315.4,3312.8,1.5]
[1641463079716,4.82691,3315.4,3312.3,1.5]
[1641463079914,4.82691,3315.4,3312.0,0.96719663]
[1641463080116,1.50856412,3314.3,3312.5,1.50856412]
[1641463080517,2.00479,3313.8,3313.0,2.00479]
[1641463080715,2.00479,3313.8,3313.1,0.132394]
[1641463080915,2.00479,3313.8,3313.4,3.0081273]
[1641463081115,1.50839346,3314.7,3313.4,1.5]
[1641463081316,1.50872116,3314.0,3313.0,2.00479]
[1641463081516,9.99999999,3315.0,3313.0,2.00479]
[1641463081517,1.50901485,3313.4,3313.0,2.00479]
[1641463081717,1.50915605,3313.1,3311.2,1.50915605]
[1641463081916,4.829168,3313.3,3310.6,1.5]
[1641463082217,1.50958207,3312.4,3310.4,0.88059549]
[1641463082416,4.00958,3310.5,3310.4,0.88059549]
[1641463082617,1.51010639,3311.0,3310.4,0.88059549]
[1641463083217,0.94707527,3310.9,3309.9,1.93439325]
[1641463083419,1.51036868,3310.5,3309.9,1.93439325]
[1641463083616,1.74117205,3310.5,3309.4,2.00479]
[1641463083816,1.51054435,3310.2,3308.8,1.61199438]
[1641463084015,1.74134773,3310.5,3308.8,1.61199438]
[1641463084016,1.51074746,3309.6,3308.8,1.61199438]
[1641463084317,1.51097573,3309.1,3308.8,1.61199438]
[1641463084516,4.00958,3308.9,3308.8,1.61199438]
[1641463084716,4.00958,3308.9,3308.1,3.22398875]
[1641463084916,4.164735,3308.9,3307.8,6.03477594]
[1641463085115,1.51124518,3308.5,3307.8,2.42298594]
[1641463085315,4.164735,3308.9,3308.1,1.26919663]
[1641463085519,1.51079539,3309.4,3308.1,1.26919663]
[1641463085717,0.23080337,3309.7,3307.8,2.42298594]
[1641463085915,33.81130337,3310.5,3307.8,2.42298594]
[1641463086116,0.23080337,3310.6,3308.4,1.26919663]
[1641463086316,1.51086387,3309.3,3307.4,1.51086387]
[1641463086515,2.00479,3309.8,3308.7,2.00479]
[1641463086715,31.9183,3312.6,3309.7,1.26919663]
[1641463086914,0.23080337,3312.0,3308.7,2.00479]
[1641463087115,1.51012691,3310.9,3309.0,2.77932354]
[1641463087315,3.627849,3311.9,3309.0,1.26919663]
[1641463087516,3.013416,3310.8,3309.0,1.5]
[1641463087715,12.71,3312.6,3309.0,1.5]
[1641463087716,66.0234,3312.6,3309.0,1.5]
[1641463087916,1.50983962,3311.5,3310.6,1.26919663]
[1641463088115,33.8071,3312.6,3311.1,1.26919663]
[1641463088317,0.23080337,3313.8,3310.0,1.5]
[1641463088516,2.00479,3311.6,3311.3,1.26919663]
[1641463088715,10.23080336,3311.4,3309.8,1.50976668]
[1641463088916,0.23080337,3309.9,3307.4,1.26919663]
[1641463089116,0.23080337,3309.8,3307.4,1.26919663]
[1641463089316,5.66503192,3309.8,3307.4,1.26919663]
[1641463089516,12.71,3309.7,3307.4,1.26919663]
[1641463089714,12.71,3309.7,3306.6,1.5]
[1641463089915,1.51104422,3308.6,3307.1,1.51086387]
[1641463090117,1.51113784,3308.4,3307.4,1.26919663]
[1641463090519,2.00479,3308.2,3307.4,2.00479]
[1641463090717,0.132394,3308.1,3307.5,0.132394]
[1641463090919,1.64369856,3308.1,3306.2,1.51130456]
[1641463091119,1.51168381,3307.6,3304.1,1.5]
[1641463091316,4.838002,3308.0,3305.3,1.26919663]
[1641463091516,4.839905,3307.5,3306.0,1.5]
[1641463091716,4.839465,3308.1,3305.8,1.26919663]
[1641463091916,4.838587,3307.9,3305.8,1.26919663]
[1641463092118,1.51163582,3307.3,3305.8,1.26919663]
[1641463092319,4.83419,3308.1,3305.6,1.26919663]
[1641463092518,2.00479,3306.7,3305.9,3.27398663]
[1641463092918,2.00479,3306.7,3305.9,2.00479]
[1641463093121,2.00479,3307.0,3306.6,1.26919663]
[1641463093320,23.51658772,3313.9,3306.2,1.51128857]
[1641463093321,1.08134317,3308.0,3306.9,1.26919663]
[1641463093524,1.51097801,3308.8,3307.9,1.26919663]
[1641463093721,30.94,3310.5,3308.7,1.26919663]
[1641463093918,30.94,3310.5,3307.6,1.5]
[1641463093919,1.51048275,3309.9,3308.9,1.26919663]
[1641463094118,1.51048275,3309.9,3308.5,1.5]
[1641463094421,1.51026375,3310.3,3308.5,1.51026375]
[1641463094618,2.00479,3309.2,3308.9,1.26919663]
[1641463095318,0.229991,3309.1,3308.9,1.26919663]
[1641463095519,0.229991,3309.1,3307.9,1.26919663]
[1641463095819,0.229991,3309.1,3308.7,1.26919663]
[1641463096023,0.132394,3309.0,3308.7,1.26919663]
[1641463096222,0.229991,3308.9,3308.7,1.26919663]
[1641463096420,0.132394,3308.8,3307.5,1.5]
[1641463096621,2.00479,3308.5,3307.8,1.26919663]
[1641463097022,2.00479,3308.5,3308.4,1.26919663]
[1641463097224,2.00479,3308.5,3307.7,2.00479]
[1641463097522,2.00479,3308.5,3307.4,2.00479]
[1641463097722,2.00479,3308.5,3306.6,1.26919663]
[1641463097923,5.06763537,3308.4,3305.8,1.26919663]
[1641463098122,4.836832,3308.4,3306.2,1.26919663]
[1641463098322,1.51171351,3307.2,3305.8,1.26919663]
[1641463098525,2.00479,3306.7,3306.0,2.00479]
[1641463098721,0.132394,3306.6,3306.0,2.00479]
[1641463099426,0.132394,3306.6,3305.3,1.26919663]
[1641463099622,0.132394,3306.6,3305.1,1.26919663]
[1641463099823,1.5122576,3306.0,3305.3,1.26919663]
[1641463100023,0.132394,3305.9,3305.3,1.26919663]
[1641463100223,4.840197,3305.9,3304.3,1.26919663]
[1641463100424,1.28177506,3305.9,3304.2,1.26919663]
[1641463100626,1.28177506,3305.9,3303.1,2.00479]
[1641463100627,2.00479,3304.3,3303.1,2.00479]
[1641463100824,1.5131134,3304.1,3302.6,1.26919663]
[1641463101025,4.843054,3304.2,3302.2,2.60080693]
[1641463101224,3.023671,3304.0,3302.9,1.26919663]
[1641463101425,3.023671,3304.0,3302.7,1.26919663]
[1641463101624,3.023671,3304.0,3301.5,2.49676931]
[1641463101625,4.843787,3304.2,3303.8,1.26919663]
[1641463101827,2.00479,3304.3,3304.1,1.26919663]
[1641463102024,2.234781,3304.3,3304.1,1.26919663]
[1641463102226,2.234781,3304.3,3301.8,1.5]
[1641463102227,2.00479,3304.3,3301.8,1.5]
[1641463102426,4.842321,3304.2,3302.6,1.26919663]
[1641463102626,2.00479,3303.5,3302.7,2.00479]
[1641463102827,0.132394,3303.4,3302.7,2.00479]
[1641463103027,4.976328,3303.4,3302.7,2.00479]
[1641463103631,0.132394,3303.4,3302.7,2.00479]
[1641463103827,0.132394,3303.4,3302.7,3.51769508]
[1641463104228,1.51353937,3303.2,3302.2,1.26919663]
[1641463104628,4.00958,3302.3,3302.2,1.26919663]
[1641463104828,4.844521,3303.1,3302.2,1.26919663]
[1641463105028,1.5133149,3303.7,3303.0,1.26919663]
[1641463105227,1.5133149,3303.7,3301.8,3.0133149]
[1641463105228,0.132394,3303.7,3303.2,1.26919663]
[1641463105427,1.51316377,3304.0,3302.1,1.51316377]
[1641463105428,1.51316377,3304.0,3303.6,1.26919663]
[1641463105626,1.51316377,3304.0,3303.2,1.26919663]
[1641463105827,4.843421,3303.6,3303.2,1.26919663]
[1641463106027,4.844007,3303.9,3302.7,1.26919663]
[1641463106230,4.843494,3303.8,3302.7,1.26919663]
[1641463106429,4.843494,3303.5,3302.7,1.26919663]
[1641463106631,2.00479,3303.1,3302.7,1.26919663]
[1641463108229,2.00479,3303.1,3303.0,1.26919663]
[1641463108428,2.00479,3303.1,3302.3,2.00479]
[1641463108429,2.00479,3303.1,3302.8,1.26919663]
[1641463108629,2.00479,3303.4,3303.0,1.26919663]
[1641463108932,1.51278835,3305.1,3303.3,4.28177218]
[1641463109129,1.51257556,3305.6,3304.6,1.26919663]
[1641463109130,1.51243143,3305.6,3304.6,1.26919663]
[1641463109329,0.41,3305.9,3304.5,1.26919663]
[1641463109531,0.41,3305.9,3304.9,1.26919663]
[1641463109729,4.840856,3305.8,3304.5,1.26919663]
[1641463109930,1.51255039,3305.3,3304.5,1.26919663]
[1641463110232,4.842028,3306.4,3304.5,1.26919663]
[1641463110433,5.07283137,3306.4,3304.5,1.26919663]
[1641463110633,2.00479,3305.1,3304.3,2.00479]
[1641463110833,2.00479,3305.1,3305.0,1.26919663]
[1641463111034,2.00479,3305.1,3302.4,1.26919663]
[1641463111035,1.74269011,3305.1,3302.4,1.26919663]
[1641463111234,5.0,3304.2,3303.2,1.5]
[1641463111438,4.842981,3305.0,3303.0,1.26919663]
[1641463111732,1.02889696,3305.5,3303.0,1.26919663]
[1641463111930,1.02889696,3305.5,3303.6,1.5]
[1641463112131,65.8727,3306.8,3302.0,4.0]
[1641463112335,12.71,3308.4,3303.4,1.5]
[1641463112536,2.00479,3305.9,3305.2,2.00479]
[1641463113432,2.00479,3305.9,3305.5,1.26919663]
[1641463113833,2.00479,3306.3,3305.8,1.26919663]
[1641463114035,2.00479,3306.3,3305.5,1.26919663]
[1641463115034,0.88881555,3311.8,3306.2,2.76919663]
[1641463115235,0.88881555,3311.8,3305.2,4.00958]
[1641463115236,9.99999999,3311.4,3308.3,1.26919663]
[1641463115435,31.6401,3311.7,3308.6,1.27119663]
[1641463115634,4.834055,3311.3,3308.6,1.27119663]
[1641463115837,4.834055,3311.3,3307.5,12.71]
[1641463116034,0.22880337,3309.1,3307.5,12.71]
[1641463116239,0.22880337,3308.4,3306.7,12.71]
[1641463116436,6.962363,3309.0,3305.2,5.28077663]
[1641463116638,2.00479,3307.4,3306.6,2.00479]
[1641463116835,0.132394,3307.3,3306.6,2.00479]
[1641463117237,4.962321,3307.3,3306.6,2.00479]
[1641463117636,4.962321,3307.3,3306.3,2.00479]
[1641463117837,4.962321,3307.3,3304.8,1.27119663]
[1641463118036,16.672321,3307.3,3304.3,1.27119663]
[1641463118237,16.672321,3307.3,3302.8,1.5]
[1641463118238,0.22880337,3306.6,3302.8,1.5]
[1641463118437,3.962321,3307.3,3305.1,12.71]
[1641463118637,1.5121707,3307.0,3306.6,2.00479]
[1641463118837,1.5121707,3307.0,3306.7,0.132394]
[1641463119439,1.51175693,3307.6,3306.7,0.132394]
[1641463119640,2.00479,3307.7,3306.7,0.132394]
[1641463120140,1.51079539,3309.7,3307.6,1.51079539]
[1641463120339,1.04384601,3309.5,3307.6,1.51079539]
[1641463120539,2.00479,3308.8,3308.0,2.00479]
[1641463120742,2.00479,3308.8,3308.1,0.132394]
[1641463120941,2.137184,3308.8,3308.1,0.132394]
[1641463121441,2.137184,3308.8,3307.7,2.00479]
[1641463121640,1.51131141,3308.6,3306.7,1.51131141]
[1641463121842,0.22880337,3308.4,3306.7,1.51131141]
[1641463122039,12.71,3308.4,3306.7,1.51131141]
[1641463122242,4.837417,3308.3,3306.7,1.51131141]
[1641463122439,6.17025099,3308.3,3306.7,1.51131141]
[1641463122640,2.00479,3307.6,3306.7,2.00479]
[1641463123041,3.838002,3307.5,3307.1,1.27119663]
[1641463123241,1.51137308,3308.4,3307.4,1.27119663]
[1641463123945,1.51137308,3308.4,3306.9,1.51120863]
[1641463124144,1.51101226,3309.2,3307.3,1.51101226]
[1641463124348,1.51086158,3309.5,3307.7,1.51086158]
[1641463124545,2.00479,3308.7,3307.9,2.00479]
[1641463124746,2.00479,3308.7,3308.0,0.132394]
[1641463124945,4.968714,3308.6,3308.0,0.132394]
[1641463125148,4.968714,3308.6,3307.9,2.00479]
[1641463125349,4.968714,3308.6,3307.9,2.137184]
[1641463125550,4.83632,3308.6,3307.9,2.137184]
[1641463125747,2.00479,3308.7,3308.0,1.51068355]
[1641463125946,2.00479,3308.7,3308.6,1.27119663]
[1641463126347,1.51068355,3309.9,3308.6,1.27119663]
[1641463126348,0.443,3312.2,3308.6,1.40359063]
[1641463126548,2.00479,3309.9,3309.1,2.00479]
[1641463126850,2.00479,3309.9,3309.2,0.132394]
[1641463127447,0.132394,3309.8,3309.2,0.132394]
[1641463127648,0.132394,3309.8,3308.6,0.6236]
[1641463127851,0.132394,3309.8,3308.1,1.51064932]
[1641463128049,2.00479,3309.9,3309.8,0.867606]
[1641463128249,2.234781,3309.9,3309.8,0.867606]
[1641463128550,2.00479,3309.9,3309.8,0.867606]
[1641463128950,2.234781,3309.9,3309.8,0.867606]
[1641463129149,2.00479,3309.9,3309.8,1.0]
[1641463130351,2.234781,3309.9,3309.8,1.0]
[1641463130551,2.00479,3309.9,3309.8,1.0]
[1641463130751,2.00479,3309.9,3309.8,0.867606]
[1641463131150,2.00479,3309.9,3309.5,0.867606]
[1641463131350,2.234781,3309.9,3309.5,0.867606]
[1641463131555,1.73973116,3309.6,3308.1,1.51064704]
[1641463131751,4.834275,3309.8,3307.7,1.27119663]
[1641463131953,0.22880337,3309.2,3306.8,1.27119663]
[1641463132356,12.71,3309.0,3306.8,1.27119663]
[1641463132552,4.836759,3309.1,3306.8,1.27119663]
[1641463132751,2.00479,3307.9,3307.7,1.27119663]
[1641463132953,1.00479,3308.3,3307.8,0.132394]
[1641463133156,4.836832,3309.0,3307.8,0.132394]
[1641463133354,0.22880337,3309.6,3307.8,0.132394]
[1641463133553,0.22880337,3309.4,3307.8,0.132394]
[1641463133753,0.22880337,3309.8,3307.8,0.132394]
[1641463133955,4.262654,3309.3,3307.8,0.132394]
[1641463134353,5.06450337,3309.4,3307.8,0.132394]
[1641463134555,4.8357,3309.4,3307.1,2.00479]
[1641463134754,2.00479,3308.2,3307.1,2.00479]
[1641463135157,2.23359337,3308.2,3305.5,32.153]
[1641463135356,0.22880337,3308.0,3305.6,1.27119663]
[1641463135557,0.22880337,3308.0,3304.9,1.27119663]
[1641463135757,1.51196951,3307.1,3305.2,1.51196951]
[1641463135958,0.22880337,3307.4,3304.7,12.71]
[1641463136155,4.839465,3307.0,3305.0,1.27119663]
[1641463136358,4.840856,3307.3,3305.0,1.27119663]
[1641463136757,2.00479,3307.1,3306.0,2.00479]
[1641463137557,0.22880337,3307.0,3306.0,2.00479]
[1641463137959,1.51191464,3307.2,3306.0,2.00479]
[1641463138158,1.51191464,3307.2,3306.5,1.27119663]
[1641463138357,1.51191464,3307.2,3306.6,0.132394]
[1641463138559,0.22880337,3307.7,3306.6,1.40359063]
[1641463138859,0.22880337,3307.8,3307.1,2.00479]
[1641463139060,1.51168152,3307.7,3307.1,2.137184]
[1641463139464,1.51168152,3307.7,3307.1,2.00479]
[1641463139663,0.22880337,3307.2,3305.2,1.27119663]
[1641463139862,12.71,3307.5,3305.2,1.27119663]
[1641463140163,4.839392,3307.1,3305.0,12.71]
[1641463140363,4.839173,3307.4,3305.9,1.27119663]
[1641463140562,0.22880337,3307.8,3306.0,12.71]
[1641463140764,2.00479,3307.3,3306.5,2.00479]
[1641463140964,2.00479,3307.3,3306.6,0.132394]
[1641463141164,2.00479,3307.5,3306.6,0.132394]
[1641463141365,2.00479,3307.5,3306.5,2.00479]
[1641463141564,0.79474755,3307.3,3306.5,2.00479]
[1641463141865,6.35028722,3307.2,3306.5,2.00479]
[1641463142064,6.35028722,3307.2,3306.6,0.132394]
[1641463142267,0.79474755,3307.3,3306.6,0.132394]
[1641463142766,0.79474755,3307.3,3306.9,2.00479]
[1641463142966,4.838295,3307.2,3306.9,2.00479]
[1641463143268,0.229991,3307.1,3306.5,2.00479]
[1641463143467,2.00479,3307.5,3306.8,1.27119663]
[1641463143968,2.00479,3307.5,3306.9,0.132394]
[1641463144569,1.5118895,3307.3,3306.5,2.00479]
[1641463144771,1.5118895,3307.3,3305.9,2.00479]
[1641463144772,1.51225074,3306.6,3305.9,2.00479]
[1641463144971,2.00479,3306.7,3305.9,2.00479]
[1641463145569,2.00479,3306.7,3306.0,0.132394]
[1641463146269,2.00479,3306.7,3306.1,1.27119663]
[1641463146471,2.00479,3307.5,3306.6,1.27119663]
[1641463146669,2.00479,3307.3,3306.5,2.00479]
[1641463146871,2.00479,3307.3,3306.6,0.132394]
[1641463149473,3.40043648,3307.3,3306.6,0.132394]
[1641463149877,3.40043648,3307.3,3305.9,2.00479]
[1641463150478,4.838807,3307.2,3305.9,2.00479]
[1641463150676,2.00479,3306.7,3305.9,2.00479]
[1641463150876,2.00479,3306.7,3306.0,1.40359063]
[1641463151275,5.0,3306.6,3306.1,0.132394]
[1641463151478,2.00479,3306.7,3306.1,0.132394]
[1641463155082,3.47745142,3307.3,3306.1,0.132394]
[1641463155083,2.00479,3307.3,3306.2,12.71]
[1641463155780,2.00479,3307.3,3306.7,14.22129314]
[1641463155979,2.00479,3307.3,3306.8,0.132394]
[1641463156781,2.137184,3307.3,3306.5,2.00479]
[1641463156984,2.137184,3307.3,3305.9,1.40368063]
[1641463158180,2.137184,3307.3,3305.9,14.11368063]
[1641463158380,2.137184,3307.3,3306.2,1.511533]
[1641463158581,2.00479,3307.3,3305.9,1.40368063]
[1641463158780,2.00479,3307.3,3306.5,2.00479]
[1641463158980,2.00479,3307.3,3306.6,0.132394]
[1641463159983,0.132394,3307.2,3306.6,0.132394]
[1641463161183,0.132394,3307.2,3306.4,2.00479]
[1641463161584,2.69478996,3307.1,3305.9,1.40368063]
[1641463161784,1.51225532,3306.5,3304.9,0.4542]
[1641463162787,2.00479,3305.8,3305.0,16.22684638]
[1641463162985,2.00479,3305.8,3305.1,0.132394]
[1641463164686,2.00479,3305.8,3305.1,1.64442295]
[1641463164991,2.00479,3305.8,3305.1,14.35442295]
[1641463165185,2.00479,3305.8,3305.3,12.71]
[1641463165488,2.00479,3305.8,3305.4,0.132394]
[1641463166486,1.97569,3305.8,3305.4,0.132394]
[1641463166885,1.41063486,3306.5,3305.4,0.132394]
[1641463166886,1.51184836,3307.4,3305.6,1.5]
[1641463167088,1.51131141,3308.6,3306.7,1.51131141]
[1641463167287,1.51131141,3308.6,3306.8,12.71]
[1641463167488,1.51810823,3308.9,3306.8,12.71]
[1641463167687,0.9270742,3308.6,3306.8,12.71]
[1641463167887,1.03587345,3308.5,3307.0,1.51114241]
[1641463168088,2.54722141,3308.5,3306.6,1.51134796]
[1641463168286,1.5,3307.6,3305.2,32.9935]
[1641463168486,1.51178207,3307.5,3305.6,1.51178207]
[1641463168687,6.35088107,3307.5,3305.6,1.51178207]
[1641463168888,3.51681666,3307.0,3306.2,2.00479]
[1641463169087,0.132394,3306.9,3306.2,2.00479]
[1641463169488,1.137184,3307.0,3306.2,2.00479]
[1641463169889,1.34608793,3306.9,3306.3,0.132394]
[1641463171492,1.137184,3307.0,3306.3,0.132394]
[1641463171691,2.00479,3307.3,3306.3,0.132394]
[1641463171891,1.51145532,3308.2,3306.5,12.71]